[Event "Chess Festival Groningen 2023 | A"]
[Site "Groningen, Netherlands"]
[Date "2023.12.28"]
[Round "7.18"]
[White "Elgersma, Onno"]
[Black "Van Helvoort, Rob"]
[Result "1-0"]
[TimeControl "90min/40moves + 30min + 30sec/move"]
[WhiteElo "2310"]
[BlackElo "2098"]

1. e4 {[%clk 01:30:56]} {[%emt 00:00:03]} e6 {[%clk 01:30:55]} {[%emt
00:00:07]} 2. d4 {[%clk 01:30:56]} {[%emt 00:00:29]} d5 {[%clk 01:31:17]}
{[%emt 00:00:08]} 3. Nd2 {[%clk 01:31:01]} {[%emt 00:00:25]} dxe4 {[%clk
01:31:27]} {[%emt 00:00:21]} 4. Nxe4 {[%clk 01:31:24]} {[%emt 00:00:07]} Bd7
{[%clk 01:31:45]} {[%emt 00:00:12]} 5. Nf3 {[%clk 01:31:35]} {[%emt 00:00:19]}
Bc6 {[%clk 01:32:00]} {[%emt 00:00:16]} 6. Bd3 {[%clk 01:31:55]} {[%emt
00:00:09]} Nd7 {[%clk 01:32:13]} {[%emt 00:00:17]} 7. O-O {[%clk 01:32:11]}
{[%emt 00:00:15]} Ngf6 {[%clk 01:32:04]} {[%emt 00:00:39]} 8. Ng3 {[%clk
01:32:29]} {[%emt 00:00:10]} Be7 {[%clk 01:31:49]} {[%emt 00:00:46]} 9. Re1
{[%clk 01:32:39]} {[%emt 00:00:21]} O-O {[%clk 01:31:35]} {[%emt 00:00:43]} 10.
c3 {[%clk 01:32:59]} {[%emt 00:00:10]} Bxf3 {[%clk 01:26:23]} {[%emt 00:05:42]}
11. Qxf3 {[%clk 01:33:23]} {[%emt 00:00:06]} c6 {[%clk 01:26:44]} {[%emt
00:00:09]} 12. Bc2 {[%clk 01:32:56]} {[%emt 00:00:56]} Re8 {[%clk 01:23:45]}
{[%emt 00:03:29]} 13. a4 {[%clk 01:26:49]} {[%emt 00:06:37]} a5 {[%clk
01:23:30]} {[%emt 00:00:46]} 14. Bd2 {[%clk 01:14:58]} {[%emt 00:12:21]} c5
{[%clk 01:14:06]} {[%emt 00:09:54]} 15. dxc5 {[%clk 01:13:17]} {[%emt
00:02:11]} Nxc5 {[%clk 01:13:33]} {[%emt 00:01:03]} 16. Rad1 {[%clk 01:12:19]}
{[%emt 00:01:26]} Qd5 {[%clk 01:11:58]} {[%emt 00:02:06]} 17. Qe2 {[%clk
01:07:59]} {[%emt 00:04:49]} Qc6 {[%clk 01:08:18]} {[%emt 00:04:12]} 18. Qc4
{[%clk 01:04:20]} {[%emt 00:04:07]} Qb6 {[%clk 00:57:19]} {[%emt 00:11:31]} 19.
Bc1 {[%clk 01:03:14]} {[%emt 00:01:35]} Rac8 {[%clk 00:55:42]} {[%emt
00:02:08]} 20. Qe2 {[%clk 01:01:24]} {[%emt 00:02:19]} Qc6 {[%clk 00:47:21]}
{[%emt 00:08:53]} 21. Rd4 {[%clk 00:59:42]} {[%emt 00:02:11]} Red8 {[%clk
00:44:34]} {[%emt 00:03:17]} 22. Rh4 {[%clk 00:51:00]} {[%emt 00:09:11]} g6
{[%clk 00:43:25]} {[%emt 00:01:39]} 23. Bg5 {[%clk 00:43:12]} {[%emt 00:08:17]}
Rd5 {[%clk 00:40:13]} {[%emt 00:03:43]} 24. Qe3 {[%clk 00:29:51]} {[%emt
00:13:50]} Rxg5 {[%clk 00:29:27]} {[%emt 00:11:17]} 25. Qxg5 {[%clk 00:30:15]}
{[%emt 00:00:06]} Nd5 {[%clk 00:29:51]} {[%emt 00:00:06]} 26. Qh6 {[%clk
00:30:37]} {[%emt 00:00:08]} Bxh4 {[%clk 00:30:16]} {[%emt 00:00:05]} 27. Qxh4
{[%clk 00:30:13]} {[%emt 00:00:54]} Qb6 {[%clk 00:29:51]} {[%emt 00:00:56]} 28.
Rb1 {[%clk 00:28:33]} {[%emt 00:02:09]} Qc7 {[%clk 00:25:47]} {[%emt 00:04:35]}
29. Ne2 {[%clk 00:17:47]} {[%emt 00:11:15]} Nd7 {[%clk 00:18:35]} {[%emt
00:07:43]} 30. Nd4 {[%clk 00:17:11]} {[%emt 00:01:05]} e5 {[%clk 00:12:04]}
{[%emt 00:07:02]} 31. Nf3 {[%clk 00:15:45]} {[%emt 00:01:56]} Kg7 {[%clk
00:12:01]} {[%emt 00:00:34]} 32. Rd1 {[%clk 00:13:48]} {[%emt 00:02:26]} N7b6
{[%clk 00:08:52]} {[%emt 00:03:39]} 33. Qe4 {[%clk 00:10:17]} {[%emt 00:04:01]}
Nf6 {[%clk 00:06:21]} {[%emt 00:03:01]} 34. Qxe5 {[%clk 00:10:17]} {[%emt
00:00:29]} Nc4 {[%clk 00:06:15]} {[%emt 00:00:36]} 35. Qxc7 {[%clk 00:09:29]}
{[%emt 00:01:18]} Rxc7 {[%clk 00:06:44]} 36. Rb1 {[%clk 00:09:49]} {[%emt
00:00:11]} Rd7 {[%clk 00:04:22]} {[%emt 00:02:52]} 37. Nd4 {[%clk 00:08:17]}
{[%emt 00:02:01]} Nd5 {[%clk 00:03:57]} {[%emt 00:00:56]} 38. g3 {[%clk
00:05:34]} {[%emt 00:03:12]} Nb4 {[%clk 00:03:10]} {[%emt 00:01:18]} 39. Rd1
{[%clk 00:02:19]} {[%emt 00:03:45]} Nxc2 {[%clk 00:02:48]} {[%emt 00:00:52]} 40.
Ne6+ {[%clk 00:02:45]} {[%emt 00:00:04]} Kf6 {[%clk 00:02:18]} {[%emt
00:01:01]} 41. Rxd7 {[%clk 00:03:10]} {[%emt 00:00:05]} Kxe6 {[%clk 00:02:41]}
{[%emt 00:00:07]} 42. Rxb7 {[%clk 00:03:30]} {[%emt 00:00:10]} Ne1 {[%clk
00:26:11]} {[%emt 00:06:59]} 43. b4 {[%clk 00:30:48]} {[%emt 00:03:12]} Nd3
{[%clk 00:25:19]} {[%emt 00:01:22]} 44. bxa5 {[%clk 00:25:17]} {[%emt
00:06:01]} Nxa5 {[%clk 00:25:22]} {[%emt 00:00:26]} 45. Rb5 {[%clk 00:25:13]}
{[%emt 00:00:34]} Nc6 {[%clk 00:24:10]} {[%emt 00:01:43]} 46. a5 {[%clk
00:24:41]} {[%emt 00:01:02]} Kd6 {[%clk 00:24:22]} {[%emt 00:00:19]} 47. Rb7
{[%clk 00:22:05]} {[%emt 00:03:06]} Nxa5 {[%clk 00:17:14]} {[%emt 00:07:38]} 48.
Rxf7 {[%clk 00:22:28]} {[%emt 00:00:06]} Nb3 {[%clk 00:08:11]} {[%emt
00:09:34]} 49. Rxh7 {[%clk 00:22:49]} {[%emt 00:00:08]} Ke5 {[%clk 00:08:22]}
{[%emt 00:00:20]} 50. f4+ {[%clk 00:21:37]} {[%emt 00:01:42]} Kf5 {[%clk
00:06:21]} {[%emt 00:02:30]} 51. Kf1 {[%clk 00:20:41]} {[%emt 00:01:25]} Ke4
{[%clk 00:06:27]} {[%emt 00:00:26]} 52. Ke2 {[%clk 00:19:46]} {[%emt 00:01:25]}
Ndc1+ {[%clk 00:06:24]} {[%emt 00:00:33]} 53. Kd1 {[%clk 00:19:07]} {[%emt
00:01:09]} Nd3 {[%clk 00:05:23]} {[%emt 00:01:32]} 54. Re7+ {[%clk 00:18:33]}
{[%emt 00:01:03]} Kf3 {[%clk 00:05:24]} {[%emt 00:00:29]} 55. Kc2 {[%clk
00:18:29]} {[%emt 00:00:34]} Nbc5 {[%clk 00:05:29]} {[%emt 00:00:26]} 56. Re8
{[%clk 00:17:55]} {[%emt 00:01:03]} Nf2 {[%clk 00:04:40]} {[%emt 00:01:19]} 57.
Rg8 {[%clk 00:13:38]} {[%emt 00:04:46]} Ng4 {[%clk 00:03:40]} {[%emt 00:01:31]}
58. Rxg6 {[%clk 00:13:13]} {[%emt 00:00:54]} Ne4 {[%clk 00:02:20]} {[%emt
00:01:51]} 59. h3 {[%clk 00:09:13]} {[%emt 00:04:30]} Ne3+ {[%clk 00:02:37]}
{[%emt 00:00:14]} 60. Kd3 {[%clk 00:09:12]} {[%emt 00:00:30]} Nf2+ {[%clk
00:02:47]} {[%emt 00:00:20]} 61. Kd4 {[%clk 00:08:55]} {[%emt 00:00:47]} Nf5+
{[%clk 00:02:45]} {[%emt 00:00:32]} 62. Ke5 {[%clk 00:07:45]} {[%emt 00:01:39]}
Nxg3 {[%clk 00:02:23]} {[%emt 00:00:52]} 63. Rxg3+ {[%clk 00:06:03]} {[%emt
00:02:13]} Kxg3 {[%clk 00:02:47]} {[%emt 00:00:07]} 64. f5 {[%clk 00:06:26]}
{[%emt 00:00:06]} Kxh3 {[%clk 00:03:06]} {[%emt 00:00:11]} 65. f6 {[%clk
00:06:44]} {[%emt 00:00:13]} Ng4+ {[%clk 00:03:18]} {[%emt 00:00:18]} 66. Ke6
{[%clk 00:07:01]} {[%emt 00:00:12]} Nh6 {[%clk 00:03:03]} {[%emt 00:00:46]} 67.
c4 {[%clk 00:07:13]} {[%emt 00:00:18]} Kg4 {[%clk 00:03:26]} {[%emt 00:00:07]}
68. c5 {[%clk 00:07:33]} {[%emt 00:00:10]} Kg5 {[%clk 00:02:45]} {[%emt
00:01:11]} 69. f7 {[%clk 00:06:55]} {[%emt 00:01:07]} Nxf7 {[%clk 00:03:06]}
{[%emt 00:00:09]} 70. Kxf7 {[%clk 00:07:19]} {[%emt 00:00:06]} Kf5 {[%clk
00:03:31]} {[%emt 00:00:05]} 71. c6 {[%clk 00:07:42]} {[%emt 00:00:07]} 1-0

[Event "Chess Festival Groningen 2023 | A"]
[Site "Groningen, Netherlands"]
[Date "2023.12.28"]
[Round "7.19"]
[White "Francs, Marats"]
[Black "De Jong, Migchiel"]
[Result "1/2-1/2"]
[TimeControl "90min/40moves + 30min + 30sec/move"]
[WhiteElo "1990"]
[BlackElo "2301"]

1. e4 {[%clk 01:30:51]} e6 {[%clk 01:30:37]} {[%emt 00:00:52]} 2. d4 {[%clk
01:31:03]} d5 {[%clk 01:31:02]} 3. Nc3 {[%clk 01:31:18]} {[%emt 00:00:32]} Bb4
{[%clk 01:30:41]} {[%emt 00:01:10]} 4. e5 {[%clk 01:31:24]} c5 {[%clk
01:29:20]} {[%emt 00:02:12]} 5. a3 {[%clk 01:30:55]} {[%emt 00:00:20]} Bxc3+
{[%clk 01:29:44]} {[%emt 00:00:23]} 6. bxc3 {[%clk 01:31:20]} Qc7 {[%clk
01:29:22]} {[%emt 00:03:42]} 7. Qg4 {[%clk 01:28:28]} {[%emt 00:00:23]} f5
{[%clk 01:29:19]} {[%emt 00:00:34]} 8. Qg3 {[%clk 01:27:20]} {[%emt 00:01:38]}
Nc6 {[%clk 01:29:37]} {[%emt 00:00:10]} 9. Ne2 {[%clk 01:22:51]} {[%emt
00:05:37]} cxd4 {[%clk 01:27:11]} {[%emt 00:02:37]} 10. cxd4 {[%clk 01:23:01]}
Nge7 {[%clk 01:27:27]} {[%emt 00:00:13]} 11. h4 {[%clk 01:17:40]} {[%emt
00:05:52]} O-O {[%clk 01:25:55]} {[%emt 00:01:59]} 12. c3 {[%clk 01:10:19]}
{[%emt 00:08:33]} Bd7 {[%clk 01:22:15]} {[%emt 00:04:40]} 13. Nf4 {[%clk
01:08:22]} {[%emt 00:01:55]} Rf7 {[%clk 01:21:40]} {[%emt 00:01:23]} 14. Be2
{[%clk 01:05:52]} {[%emt 00:02:13]} Na5 {[%clk 01:21:23]} {[%emt 00:00:59]} 15.
Rb1 {[%clk 01:03:45]} {[%emt 00:02:55]} Rc8 {[%clk 01:21:04]} {[%emt 00:00:25]}
16. Rh3 {[%clk 00:59:49]} {[%emt 00:04:38]} Nc4 {[%clk 01:15:58]} {[%emt
00:07:11]} 17. h5 {[%clk 00:45:29]} {[%emt 00:13:07]} b5 {[%clk 01:12:45]}
{[%emt 00:03:32]} 18. h6 {[%clk 00:44:02]} {[%emt 00:02:00]} g6 {[%clk
01:13:01]} {[%emt 00:00:35]} 19. Nh5 {[%clk 00:37:25]} {[%emt 00:06:59]} Kh8
{[%clk 01:12:14]} {[%emt 00:01:00]} 20. Nf6 {[%clk 00:37:41]} {[%emt 00:00:33]}
Ng8 {[%clk 01:09:40]} {[%emt 00:03:04]} 21. Nxg8 {[%clk 00:31:30]} {[%emt
00:06:44]} Rxg8 {[%clk 01:09:08]} {[%emt 00:00:39]} 22. Bxc4 {[%clk 00:24:55]}
{[%emt 00:07:08]} Qxc4 {[%clk 01:06:36]} {[%emt 00:02:53]} 23. Qd3 {[%clk
00:24:29]} {[%emt 00:00:57]} Qxd3 {[%clk 01:06:07]} {[%emt 00:01:26]} 24. Rxd3
{[%clk 00:24:58]} Rc8 {[%clk 01:05:21]} {[%emt 00:00:48]} 25. Bg5 {[%clk
00:24:07]} {[%emt 00:01:25]} Be8 {[%clk 01:05:21]} {[%emt 00:00:31]} 26. Kd2
{[%clk 00:23:34]} {[%emt 00:01:28]} Rc4 {[%clk 01:04:53]} {[%emt 00:00:35]} 27.
Kc2 {[%clk 00:23:33]} {[%emt 00:00:58]} Rfc7 {[%clk 01:04:31]} {[%emt
00:00:14]} 28. Bd8 {[%clk 00:22:02]} {[%emt 00:02:47]} Rc8 {[%clk 01:04:49]} 29.
Be7 {[%clk 00:22:02]} {[%emt 00:00:09]} a5 {[%clk 01:04:23]} {[%emt 00:00:54]}
30. Kb2 {[%clk 00:21:58]} {[%emt 00:00:28]} Kg8 {[%clk 01:04:11]} {[%emt
00:00:42]} 31. g4 {[%clk 00:20:39]} {[%emt 00:01:49]} fxg4 {[%clk 01:03:47]}
{[%emt 00:00:53]} 32. Rg1 {[%clk 00:20:52]} {[%emt 00:02:05]} g5 {[%clk
01:02:38]} 33. Rxg4 {[%clk 00:20:21]} {[%emt 00:00:52]} Bg6 {[%clk 01:03:02]}
{[%emt 00:00:16]} 34. Rdg3 {[%clk 00:19:37]} {[%emt 00:03:00]} R8c7 {[%clk
01:01:51]} 35. Bd6 {[%clk 00:17:53]} {[%emt 00:02:03]} Rf7 {[%clk 01:01:08]}
{[%emt 00:01:19]} 36. f3 {[%clk 00:17:54]} {[%emt 00:00:24]} Rf5 {[%clk
00:59:34]} {[%emt 00:02:00]} 37. Rxg5 {[%clk 00:18:08]} {[%emt 00:00:52]} Rxg5
{[%clk 00:59:57]} 38. Rxg5 {[%clk 00:18:28]} Rc8 {[%clk 00:58:30]} {[%emt
00:02:19]} 39. Rg3 {[%clk 00:16:15]} {[%emt 00:02:12]} a4 {[%clk 00:57:44]}
{[%emt 00:01:08]} 40. Rg1 {[%clk 00:10:47]} {[%emt 00:06:10]} Kf7 {[%clk
00:57:44]} {[%emt 00:00:15]} 41. Rg3 {[%clk 00:10:35]} {[%emt 00:00:57]} Rg8
{[%clk 00:57:26]} {[%emt 00:00:46]} 42. f4 {[%clk 00:09:59]} {[%emt 00:01:17]}
Be4 {[%clk 00:54:55]} {[%emt 00:03:05]} 43. Rxg8 {[%clk 00:10:05]} {[%emt
00:00:09]} Kxg8 {[%clk 00:55:19]} {[%emt 00:00:05]} 44. Be7 {[%clk 00:10:28]}
Kf7 {[%clk 00:55:42]} {[%emt 00:00:05]} 45. Bf6 {[%clk 00:10:50]} {[%emt
00:00:05]} Kg6 {[%clk 00:55:51]} {[%emt 00:00:27]} 46. Bg5 {[%clk 00:11:14]}
{[%emt 00:00:11]} Bd3 {[%clk 00:55:35]} {[%emt 00:00:36]} 47. Kc1 {[%clk
00:11:28]} {[%emt 00:01:20]} Kf5 {[%clk 00:55:54]} 48. Kd2 {[%clk 00:11:43]}
Bc4 {[%clk 00:55:13]} {[%emt 00:00:38]} 1/2-1/2

[Event "Chess Festival Groningen 2023 | A"]
[Site "Groningen, Netherlands"]
[Date "2023.12.28"]
[Round "7.20"]
[White "Jaiveer, Mahendru"]
[Black "Kanyamarala, Trisha"]
[Result "1-0"]
[TimeControl "90min/40moves + 30min + 30sec/move"]
[WhiteFideId "25611151"]
[WhiteElo "2294"]
[BlackElo "2184"]

1. e4 {[%clk 01:30:59]} c5 {[%clk 01:30:44]} {[%emt 00:00:08]} 2. Nf3 {[%clk
01:31:26]} Nc6 {[%clk 01:31:03]} 3. d4 {[%clk 01:31:53]} {[%emt 00:00:09]} cxd4
{[%clk 01:31:25]} 4. Nxd4 {[%clk 01:32:19]} {[%emt 00:00:14]} e5 {[%clk
01:31:43]} 5. Nb5 {[%clk 01:32:45]} d6 {[%clk 01:32:04]} {[%emt 00:00:09]} 6.
N1c3 {[%clk 01:33:13]} {[%emt 00:00:04]} a6 {[%clk 01:32:24]} {[%emt 00:00:12]}
7. Na3 {[%clk 01:33:40]} Be7 {[%clk 01:32:38]} {[%emt 00:00:13]} 8. Be3 {[%clk
01:25:23]} {[%emt 00:09:18]} Nf6 {[%clk 01:31:16]} {[%emt 00:01:53]} 9. Nd5
{[%clk 01:19:23]} {[%emt 00:06:30]} Nxd5 {[%clk 01:27:37]} {[%emt 00:04:16]} 10.
exd5 {[%clk 01:19:48]} Nd4 {[%clk 01:22:24]} {[%emt 00:05:11]} 11. Bxd4 {[%clk
01:13:46]} {[%emt 00:06:30]} exd4 {[%clk 01:22:47]} {[%emt 00:00:39]} 12. Qxd4
{[%clk 01:09:49]} {[%emt 00:03:58]} O-O {[%clk 01:23:03]} {[%emt 00:00:14]} 13.
O-O-O {[%clk 01:08:27]} {[%emt 00:02:28]} Bf6 {[%clk 01:23:10]} {[%emt
00:00:09]} 14. Qd2 {[%clk 01:08:37]} {[%emt 00:00:09]} b5 {[%clk 01:23:22]}
{[%emt 00:00:19]} 15. Bd3 {[%clk 00:43:23]} {[%emt 00:25:27]} Bd7 {[%clk
01:21:16]} {[%emt 00:03:10]} 16. Rhe1 {[%clk 00:38:33]} {[%emt 00:04:59]} Rc8
{[%clk 01:14:30]} {[%emt 00:07:03]} 17. h3 {[%clk 00:23:45]} {[%emt 00:15:37]}
Rc5 {[%clk 00:54:35]} {[%emt 00:20:06]} 18. f4 {[%clk 00:23:19]} {[%emt
00:01:00]} Qc7 {[%clk 00:49:36]} {[%emt 00:05:26]} 19. g4 {[%clk 00:09:03]}
{[%emt 00:14:45]} b4 {[%clk 00:48:16]} {[%emt 00:01:49]} 20. Nb1 {[%clk
00:09:24]} {[%emt 00:00:11]} Qa5 {[%clk 00:47:08]} {[%emt 00:01:55]} 21. Re4
{[%clk 00:04:59]} {[%emt 00:04:40]} Rb8 {[%clk 00:31:20]} {[%emt 00:16:17]} 22.
Bc4 {[%clk 00:02:12]} {[%emt 00:03:32]} Qc7 {[%clk 00:24:06]} {[%emt 00:07:25]}
23. Qe2 {[%clk 00:01:15]} {[%emt 00:01:43]} g6 {[%clk 00:22:04]} {[%emt
00:02:38]} 24. Nd2 {[%clk 00:00:34]} {[%emt 00:00:53]} Rc8 {[%clk 00:21:21]}
{[%emt 00:01:13]} 25. Kb1 {[%clk 00:00:34]} {[%emt 00:00:45]} Bb5 {[%clk
00:20:10]} {[%emt 00:01:22]} 26. g5 {[%clk 00:00:50]} {[%emt 00:00:36]} Bxb2
{[%clk 00:12:52]} {[%emt 00:07:26]} 27. Bxb5 {[%clk 00:00:36]} {[%emt
00:00:57]} axb5 {[%clk 00:09:45]} {[%emt 00:03:42]} 28. Re8+ {[%clk 00:01:05]}
Rxe8 {[%clk 00:09:18]} {[%emt 00:00:40]} 29. Qxe8+ {[%clk 00:01:34]} {[%emt
00:00:36]} Kg7 {[%clk 00:09:41]} 30. Qe4 {[%clk 00:00:32]} {[%emt 00:01:04]} f5
{[%clk 00:04:00]} {[%emt 00:06:32]} 31. Qd3 {[%clk 00:00:36]} {[%emt 00:00:20]}
Bc3 {[%clk 00:03:13]} {[%emt 00:01:35]} 32. Re1 {[%clk 00:00:37]} {[%emt
00:00:19]} Qa7 {[%clk 00:01:40]} {[%emt 00:01:52]} 33. Qe3 {[%clk 00:00:33]}
{[%emt 00:00:22]} Qf7 {[%clk 00:01:21]} {[%emt 00:00:49]} 34. Nb3 {[%clk
00:00:33]} {[%emt 00:00:30]} Rxd5 {[%clk 00:01:12]} {[%emt 00:00:39]} 35. Rh1
{[%clk 00:00:47]} {[%emt 00:00:37]} Kf8 {[%clk 00:00:49]} {[%emt 00:00:57]} 36.
h4 {[%clk 00:00:39]} {[%emt 00:00:17]} Qe7 {[%clk 00:00:39]} {[%emt 00:00:36]}
37. Qb6 {[%clk 00:00:37]} {[%emt 00:00:31]} h5 {[%clk 00:00:37]} {[%emt
00:00:35]} 38. gxh6 {[%clk 00:00:49]} {[%emt 00:00:33]} Kg8 {[%clk 00:00:39]}
{[%emt 00:00:10]} 39. h5 {[%clk 00:00:55]} {[%emt 00:00:24]} g5 {[%clk
00:00:48]} {[%emt 00:00:22]} 40. fxg5 {[%clk 00:00:54]} {[%emt 00:00:42]} Re5
{[%clk 00:00:37]} {[%emt 00:00:29]} 41. g6 {[%clk 00:27:18]} {[%emt 00:04:19]}
Qf8 {[%clk 00:28:09]} {[%emt 00:02:44]} 42. h7+ {[%clk 00:18:15]} {[%emt
00:09:34]} Kg7 {[%clk 00:28:34]} {[%emt 00:00:05]} 43. h8=Q+ {[%clk 00:16:36]}
{[%emt 00:02:08]} Qxh8 {[%clk 00:28:42]} {[%emt 00:00:21]} 44. Qxd6 {[%clk
00:13:32]} {[%emt 00:03:36]} Qh6 {[%clk 00:26:52]} {[%emt 00:02:24]} 45. Nd4
{[%clk 00:11:14]} {[%emt 00:02:43]} Bxd4 {[%clk 00:21:57]} {[%emt 00:05:28]} 46.
Qxd4 {[%clk 00:11:36]} {[%emt 00:00:04]} Qe3 {[%clk 00:22:15]} {[%emt
00:00:45]} 47. h6+ {[%clk 00:11:43]} Kxg6 {[%clk 00:22:38]} 48. Qxe3 {[%clk
00:11:55]} {[%emt 00:00:15]} Rxe3 {[%clk 00:23:03]} {[%emt 00:00:33]} 49. h7
{[%clk 00:12:23]} 1-0

[Event "Chess Festival Groningen 2023 | A"]
[Site "Groningen, Netherlands"]
[Date "2023.12.28"]
[Round "7.21"]
[White "Smeets, Kobe"]
[Black "Goudriaan, Rafael"]
[Result "1-0"]
[TimeControl "90min/40moves + 30min + 30sec/move"]
[WhiteElo "2239"]
[BlackElo "2039"]

1. e4 {[%clk 01:30:57]} c6 {[%clk 01:30:47]} {[%emt 00:00:13]} 2. d4 {[%clk
01:31:18]} {[%emt 00:00:47]} d5 {[%clk 01:31:12]} 3. e5 {[%clk 01:31:41]} c5
{[%clk 01:31:37]} 4. dxc5 {[%clk 01:32:03]} e6 {[%clk 01:32:03]} 5. Nf3 {[%clk
01:32:23]} {[%emt 00:00:14]} Bxc5 {[%clk 01:32:16]} {[%emt 00:00:18]} 6. a3
{[%clk 01:32:47]} Ne7 {[%clk 01:30:58]} {[%emt 00:01:35]} 7. b4 {[%clk
01:33:12]} {[%emt 00:00:27]} Bb6 {[%clk 01:31:21]} {[%emt 00:00:19]} 8. Bb2
{[%clk 01:33:38]} a5 {[%clk 01:31:34]} 9. Nbd2 {[%clk 01:34:04]} axb4 {[%clk
01:31:43]} {[%emt 00:00:38]} 10. axb4 {[%clk 01:34:21]} Rxa1 {[%clk 01:32:08]}
11. Qxa1 {[%clk 01:34:46]} {[%emt 00:00:15]} O-O {[%clk 01:31:44]} {[%emt
00:01:12]} 12. Bd3 {[%clk 01:35:12]} Na6 {[%clk 01:32:01]} {[%emt 00:00:10]} 13.
Qa3 {[%clk 01:34:26]} {[%emt 00:00:47]} Ng6 {[%clk 01:31:10]} {[%emt 00:01:42]}
14. g3 {[%clk 01:28:32]} {[%emt 00:06:02]} Qe7 {[%clk 01:29:50]} {[%emt
00:01:51]} 15. Bxa6 {[%clk 01:20:50]} {[%emt 00:08:17]} bxa6 {[%clk 01:29:16]}
{[%emt 00:01:37]} 16. h4 {[%clk 01:21:04]} Qa7 {[%clk 01:27:13]} {[%emt
00:02:13]} 17. O-O {[%clk 01:20:40]} {[%emt 00:01:14]} Ne7 {[%clk 01:21:09]}
{[%emt 00:06:11]} 18. Nb3 {[%clk 01:16:48]} {[%emt 00:04:22]} Bd7 {[%clk
01:09:39]} {[%emt 00:12:00]} 19. Bd4 {[%clk 01:15:18]} {[%emt 00:02:25]} Nf5
{[%clk 01:06:05]} {[%emt 00:03:41]} 20. Bxb6 {[%clk 01:12:17]} {[%emt
00:03:36]} Qxb6 {[%clk 01:06:30]} {[%emt 00:00:15]} 21. Nc5 {[%clk 01:12:20]}
{[%emt 00:00:47]} Bb5 {[%clk 01:06:51]} 22. Ra1 {[%clk 01:11:49]} {[%emt
00:00:34]} h5 {[%clk 01:05:38]} {[%emt 00:02:02]} 23. Qc3 {[%clk 01:05:31]}
{[%emt 00:07:02]} Bc4 {[%clk 01:03:50]} {[%emt 00:01:45]} 24. Nd7 {[%clk
00:49:02]} {[%emt 00:17:20]} Nxg3 {[%clk 01:02:14]} {[%emt 00:02:02]} 25. Qxc4
{[%clk 00:48:52]} {[%emt 00:00:43]} Qa7 {[%clk 01:00:26]} {[%emt 00:02:18]} 26.
Qd3 {[%clk 00:44:51]} {[%emt 00:04:09]} Ne4 {[%clk 01:00:10]} {[%emt 00:01:09]}
27. Nc5 {[%clk 00:44:54]} {[%emt 00:00:13]} Nxc5 {[%clk 00:59:29]} {[%emt
00:01:09]} 28. bxc5 {[%clk 00:39:42]} {[%emt 00:05:36]} 1-0